bitfinex/quotes_ETHUSD_20250504
["timestamp","ask_amount","ask_price","bid_price","bid_amount"]
[1746385109564,0.21836316,1830.5,1830.2,12.29083305]
[1746385111326,0.21836316,1830.5,1830.2,8.60243705]
[1746385111532,11.60219397,1830.8,1830.4,7.82734207]
[1746385111756,0.21746083,1830.7,1830.4,0.7948]
[1746385112082,0.21746083,1830.7,1830.6,2.36405536]
[1746385112259,0.21746083,1830.7,1830.6,0.7948]
[1746385112464,5.46180017,1830.9,1830.6,5.2678]
[1746385112654,0.21746083,1830.7,1830.6,5.2678]
[1746385112856,5.46180017,1830.9,1830.6,5.2678]
[1746385113049,0.21746083,1830.7,1830.6,5.2678]
[1746385113253,5.46180017,1830.9,1830.6,5.2678]
[1746385113434,0.21746083,1830.7,1830.6,5.2678]
[1746385113634,5.46180017,1830.9,1830.6,6.49778542]
[1746385113839,0.21746083,1830.7,1830.6,5.2678]
[1746385114054,5.46180017,1830.9,1830.6,5.2678]
[1746385114256,0.21746083,1830.7,1830.6,5.2678]
[1746385114460,5.46180017,1830.9,1830.6,5.2678]
[1746385114660,0.21746083,1830.7,1830.6,5.2678]
[1746385114881,5.46180017,1830.9,1830.6,6.49778542]
[1746385115048,0.21746083,1830.7,1830.6,6.49778542]
[1746385115238,5.46180017,1830.9,1830.6,6.49778542]
[1746385115438,0.21746083,1830.7,1830.6,6.49778542]
[1746385115652,5.46180017,1830.9,1830.6,6.49778542]
[1746385115849,0.21746083,1830.7,1830.6,11.96047524]
[1746385116173,0.21846775,1830.7,1830.6,11.96047524]
[1746385116343,5.46166377,1831.0,1830.6,11.96047524]
[1746385116672,0.22094891,1830.9,1830.6,11.96047524]
[1746385119052,5.68277002,1830.9,1830.6,6.49778542]
[1746385121974,5.46214685,1830.8,1830.6,5.2678]
[1746385122353,0.22103776,1830.7,1830.6,5.2678]
[1746385122556,0.22103776,1830.7,1830.6,4.473]
[1746385127275,5.68342919,1830.7,1830.6,4.473]
[1746385127778,6.48092919,1830.7,1830.6,4.473]
[1746385131987,0.22103776,1830.7,1830.6,4.473]
[1746385132358,11.70209511,1830.9,1830.6,4.473]
[1746385132651,0.21807099,1830.7,1830.6,4.473]
[1746385132881,5.46214173,1830.8,1830.6,4.473]
[1746385133079,0.21807099,1830.7,1830.6,4.473]
[1746385133282,5.68046242,1830.7,1830.6,4.473]
[1746385139884,5.68046242,1830.7,1830.5,0.753]
[1746385141064,5.68046242,1830.7,1830.4,5.2357]
[1746385141472,5.46285787,1830.6,1830.2,5.2357]
[1746385141683,5.46316632,1830.5,1830.2,5.2357]
[1746385142010,5.68085889,1830.5,1830.2,5.2357]
[1746385142178,5.46329342,1830.4,1830.2,5.2357]
[1746385142494,5.46329342,1830.4,1830.2,4.472]
[1746385143078,0.21769257,1830.3,1830.2,4.472]
[1746385144063,5.46329977,1830.4,1830.2,4.472]
[1746385144361,5.68127777,1830.3,1830.2,4.472]
[1746385144793,6.44947777,1830.3,1830.1,3.68852132]
[1746385144981,5.46388372,1830.2,1830.1,3.68852132]
[1746385145387,5.68052351,1830.2,1830.1,3.68852132]
[1746385145705,0.21663979,1830.2,1830.0,4.472]
[1746385149283,5.68055184,1830.2,1830.0,4.472]
[1746385149611,0.21663979,1830.2,1830.0,4.472]
[1746385154387,5.6806564,1830.2,1830.0,4.472]
[1746385155210,0.21663979,1830.2,1830.0,4.472]
[1746385164423,5.68054242,1830.2,1830.0,4.472]
[1746385171634,0.21663979,1830.2,1830.0,4.472]
[1746385172237,5.6807346,1830.2,1830.0,4.472]
[1746385172407,5.6807346,1830.2,1829.9,4.473]
[1746385174533,5.46455271,1830.0,1829.8,0.7637]
[1746385174709,5.46455271,1830.0,1829.8,5.2367]
[1746385174710,5.46470987,1830.0,1829.8,5.2367]
[1746385174935,0.21348095,1829.9,1829.8,5.2367]
[1746385175339,5.46437174,1830.1,1829.8,5.2367]
[1746385175637,5.46450266,1830.0,1829.8,5.2367]
[1746385175838,5.67587756,1830.0,1829.8,5.2367]
[1746385176227,0.2113749,1830.0,1829.8,5.2367]
[1746385178435,6.26147949,1829.9,1829.8,4.473]
[1746385178617,6.47268173,1830.0,1829.8,4.473]
[1746385178817,6.26130683,1830.0,1829.8,4.473]
[1746385179121,0.2113749,1829.9,1829.8,4.473]
[1746385183839,5.67615439,1829.9,1829.8,4.473]
[1746385184416,0.2113749,1829.9,1829.8,4.473]
[1746385185950,5.67615439,1829.9,1829.8,4.473]
[1746385186251,6.86990261,1829.9,1829.8,4.473]
[1746385193862,1.40512312,1829.9,1829.8,4.473]
[1746385194022,0.2113749,1829.9,1829.8,4.473]
[1746385195254,5.67615439,1829.9,1829.8,4.473]
[1746385196521,0.2113749,1829.9,1829.8,4.473]
[1746385197359,5.67615439,1829.9,1829.8,4.473]
[1746385198924,0.2113749,1829.9,1829.8,4.473]
[1746385200562,0.2113749,1829.9,1829.8,5.2521]
[1746385203425,5.67615439,1829.9,1829.8,4.473]
[1746385204170,0.2113749,1829.9,1829.8,4.473]
[1746385205360,5.67615439,1829.9,1829.8,4.473]
[1746385205856,0.2113749,1829.9,1829.8,4.473]
[1746385207247,0.2113749,1829.9,1829.6,12.28701935]
[1746385207447,5.67626577,1829.9,1829.6,5.2521]
[1746385207677,5.67626577,1829.9,1829.6,6.82135536]
[1746385210655,5.46510166,1829.8,1829.6,6.82135536]
[1746385211083,5.67626577,1829.9,1829.6,6.82135536]
[1746385214507,0.2113749,1829.9,1829.6,6.87600657]
[1746385214783,5.67618517,1829.9,1829.6,6.87600657]
[1746385215389,11.14123088,1829.9,1829.6,6.82135536]
[1746385215688,5.46512894,1829.8,1829.6,6.82135536]
[1746385215986,5.67638767,1829.9,1829.6,6.82135536]
[1746385216897,5.46510394,1829.8,1829.6,5.2521]
[1746385217096,5.46507815,1829.8,1829.6,4.473]
[1746385217469,0.20678528,1829.7,1829.6,4.473]
[1746385218185,5.67216211,1829.7,1829.6,4.473]
[1746385219098,0.20678528,1829.7,1829.6,4.473]
[1746385219305,0.20678528,1829.7,1829.6,6.83365536]
[1746385219603,5.4648957,1829.9,1829.6,6.83365536]
[1746385219787,0.20549153,1829.7,1829.6,6.83365536]
[1746385219984,5.4648957,1829.9,1829.6,6.83365536]
[1746385220184,0.20549153,1829.7,1829.6,5.2644]
[1746385220398,5.4648957,1829.9,1829.6,5.2644]
[1746385220566,0.20549153,1829.7,1829.6,5.2644]
[1746385220776,5.4648957,1829.9,1829.6,5.2644]
[1746385221105,0.20549153,1829.8,1829.6,5.2644]
[1746385221462,5.46508558,1829.8,1829.6,5.2644]
[1746385221661,0.20549153,1829.7,1829.6,5.2644]
[1746385222493,5.46497206,1829.9,1829.6,5.2644]
[1746385222682,0.20549153,1829.7,1829.6,5.2644]
[1746385223195,12.43722574,1830.0,1829.6,5.2644]
[1746385223399,0.20549153,1829.7,1829.6,5.2644]
[1746385223584,5.46499766,1829.9,1829.6,5.2644]
[1746385223774,0.20549153,1829.8,1829.6,5.2644]
[1746385223974,5.46499766,1829.9,1829.6,5.2644]
[1746385224174,0.20549153,1829.8,1829.6,5.2644]
[1746385224379,7.25522,1829.9,1829.6,5.2644]
[1746385224569,0.20549153,1829.8,1829.6,5.2644]
[1746385224760,7.2551759,1829.9,1829.6,5.2644]
[1746385224963,0.20549153,1829.8,1829.6,5.2644]
[1746385225177,7.2551759,1829.9,1829.6,5.2644]
[1746385225386,0.20549153,1829.8,1829.6,5.2644]
[1746385225790,5.46524096,1829.8,1829.6,4.473]
[1746385225992,0.20549153,1829.7,1829.6,4.473]
[1746385227226,0.20549153,1829.7,1829.5,5.4659091]
[1746385227513,0.20549153,1829.7,1829.5,4.473]
[1746385227692,5.46510211,1829.8,1829.5,4.473]
[1746385227897,0.20549153,1829.6,1829.5,4.473]
[1746385228098,5.46510211,1829.8,1829.5,4.473]
[1746385228604,0.20549153,1829.7,1829.5,4.473]
[1746385228769,0.20549153,1829.7,1829.5,9.93896126]
[1746385229102,10.92999938,1829.9,1829.5,9.93896126]
[1746385229298,0.20549153,1829.6,1829.5,9.93896126]
[1746385229479,5.46507949,1829.8,1829.5,9.93896126]
[1746385230002,0.20549153,1829.7,1829.5,9.93896126]
[1746385232113,0.20549153,1829.7,1829.5,4.473]
[1746385234010,0.20549153,1829.7,1829.5,9.93893849]
[1746385234505,5.46494542,1829.9,1829.5,9.93893849]
[1746385234702,0.20359192,1829.6,1829.5,9.93893849]
[1746385234909,5.46494542,1829.9,1829.5,9.93893849]
[1746385235087,0.20359192,1829.6,1829.5,4.473]
[1746385235290,10.92997846,1829.9,1829.5,4.473]
[1746385235526,0.20359192,1829.6,1829.5,4.473]
[1746385235676,10.92997846,1829.9,1829.5,4.473]
[1746385236030,12.72023631,1829.9,1829.5,4.473]
[1746385236177,0.20359192,1829.8,1829.5,4.473]
[1746385236376,12.72023631,1829.9,1829.5,4.473]
[1746385236595,0.20359192,1829.8,1829.5,4.473]
[1746385236875,5.46507928,1829.8,1829.5,4.473]
[1746385237103,0.20359192,1829.7,1829.5,4.473]
[1746385238442,0.20359192,1829.7,1829.5,6.04225536]
[1746385242036,5.66903387,1829.7,1829.5,6.04225536]
[1746385242342,6.86213847,1829.7,1829.5,4.473]
[1746385245207,1.39663323,1829.7,1829.5,4.473]
[1746385245411,0.20359192,1829.7,1829.5,4.473]
[1746385250047,5.66900607,1829.7,1829.5,4.473]
[1746385250968,0.20359192,1829.7,1829.4,0.2995128]
[1746385251132,5.66899177,1829.7,1829.4,6.34176816]
[1746385252051,0.20359192,1829.7,1829.4,6.34176816]
[1746385252227,5.66908339,1829.7,1829.4,6.34176816]
[1746385252428,6.86214319,1829.7,1829.4,6.34176816]
[1746385252628,6.86215136,1829.7,1829.4,6.34176816]
[1746385252853,5.46578796,1829.6,1829.4,4.7725128]
[1746385253151,6.29798796,1829.6,1829.4,4.7725128]
[1746385253526,0.20276404,1829.5,1829.4,4.7725128]
[1746385261785,0.20276404,1829.5,1829.4,6.34176816]
[1746385261998,5.46539784,1829.7,1829.4,6.34176816]
[1746385262148,7.25195437,1829.7,1829.4,6.34176816]
[1746385262348,0.2014092,1829.6,1829.4,6.34176816]
[1746385262671,7.25195437,1829.7,1829.4,6.34176816]
[1746385262870,0.2014092,1829.5,1829.4,6.34176816]
[1746385263285,5.46539784,1829.7,1829.4,6.34176816]
[1746385263482,0.2014092,1829.5,1829.4,6.34176816]
[1746385263683,5.47980274,1829.7,1829.4,6.34176816]
[1746385263979,0.2014092,1829.5,1829.4,6.34176816]
[1746385264483,5.47980274,1829.7,1829.4,6.34176816]
[1746385265084,0.2014092,1829.6,1829.4,6.34176816]
[1746385265581,5.47980274,1829.7,1829.4,6.34176816]
[1746385265788,0.2014092,1829.5,1829.4,6.34176816]
[1746385266083,5.47980274,1829.7,1829.4,6.34176816]
[1746385266275,0.2014092,1829.5,1829.4,6.34176816]
[1746385266476,5.47980274,1829.7,1829.4,6.34176816]
[1746385266677,0.2014092,1829.5,1829.4,6.34176816]
[1746385266876,5.47980274,1829.7,1829.4,6.34176816]
[1746385267075,0.2014092,1829.5,1829.4,6.34176816]
[1746385267255,6.26059535,1829.6,1829.4,4.7725128]
[1746385267455,0.2014092,1829.5,1829.4,4.7725128]
[1746385269694,6.27486031,1829.7,1829.4,4.7725128]
[1746385269870,0.20186079,1829.5,1829.4,4.7725128]
[1746385270191,6.27486031,1829.7,1829.4,4.7725128]
[1746385270371,0.82934682,1829.6,1829.4,4.7725128]
[1746385270574,0.20186079,1829.6,1829.4,4.7725128]
[1746385270893,6.27486031,1829.7,1829.4,4.7725128]
[1746385271192,0.20186079,1829.5,1829.4,4.7725128]
[1746385272167,6.27486031,1829.7,1829.4,4.7725128]
[1746385272368,0.20186079,1829.6,1829.4,4.7725128]
[1746385272606,6.27486031,1829.7,1829.4,6.34176816]
[1746385272778,0.20186079,1829.6,1829.4,6.34176816]
[1746385272978,6.27486031,1829.7,1829.4,6.34176816]
[1746385273188,0.20186079,1829.6,1829.4,6.34176816]
[1746385273392,6.27486031,1829.7,1829.4,6.34176816]
[1746385273595,0.20186079,1829.6,1829.4,6.34176816]
[1746385273801,6.27486031,1829.7,1829.4,6.34176816]
[1746385273975,0.20186079,1829.6,1829.4,6.34176816]
[1746385274179,7.26797115,1829.7,1829.5,8.65914673]
[1746385274180,0.0144049,1829.7,1829.5,8.65914673]
[1746385274375,0.0144049,1829.7,1829.6,7.84033091]
[1746385274820,0.0144049,1829.7,1829.6,7.89498017]
[1746385275807,0.0144049,1829.7,1829.6,7.84033091]
[1746385276014,0.0144049,1829.7,1829.6,9.32788697]
[1746385278714,11.60419367,1830.1,1829.7,5.46537626]
[1746385279008,11.60419367,1830.1,1829.7,1.56925536]
[1746385279512,5.46449033,1830.0,1829.7,1.56925536]
[1746385279708,5.46449033,1830.0,1829.6,13.30565905]
[1746385280408,11.6043713,1830.1,1829.6,13.30559057]
[1746385280616,13.75441203,1830.1,1829.6,13.30559057]
[1746385280909,19.21886389,1830.1,1829.6,7.84009724]
[1746385281108,5.46460397,1830.0,1829.6,7.84009724]
[1746385285213,6.25970397,1830.0,1829.6,7.84009724]
[1746385285413,0.20390668,1829.9,1829.6,7.84009724]
[1746385285600,0.20390668,1829.9,1829.6,7.84032317]
[1746385286617,5.66870865,1829.9,1829.6,2.37465536]
[1746385286911,5.66870865,1829.9,1829.6,7.84032991]
[1746385286912,0.20390668,1829.9,1829.6,7.84032991]
[1746385288328,0.20390668,1829.9,1829.6,7.84032723]
[1746385288509,6.31518863,1829.9,1829.6,0.8054]
[1746385288712,5.4652271,1829.8,1829.6,0.8054]
[1746385289025,0.20337751,1829.7,1829.6,2.37465536]
[1746385289204,5.46496034,1829.9,1829.6,2.37465536]
[1746385289392,0.20337751,1829.8,1829.6,2.37465536]
[1746385289723,5.46496034,1829.9,1829.6,2.37465536]
[1746385289925,0.20227821,1829.7,1829.6,7.84033091]
[1746385290126,6.25976504,1830.0,1829.6,7.84033091]
[1746385290725,0.20227821,1829.9,1829.6,7.84033091]
[1746385291228,0.20227821,1829.9,1829.7,5.46527436]
[1746385291426,13.75437619,1830.1,1829.7,5.46527436]
[1746385291611,13.75437619,1830.1,1829.6,7.89494533]
[1746385291612,1.57771583,1830.0,1829.6,7.84021737]
[1746385291818,5.66688706,1830.0,1829.6,13.30567688]
[1746385292012,5.66688706,1830.0,1829.6,7.84011487]
[1746385292526,5.66688706,1830.0,1829.6,13.30558801]
[1746385293025,5.66688706,1830.0,1829.6,7.84011487]
[1746385293237,5.66688706,1830.0,1829.6,7.84011424]
[1746385293392,5.66688706,1830.0,1829.6,13.30560664]
[1746385293728,5.66688706,1830.0,1829.6,7.84011424]
[1746385294126,0.20227821,1830.0,1829.7,5.46537172]
[1746385294319,0.20227821,1830.0,1829.7,1.56925536]
[1746385294518,5.66682175,1830.0,1829.7,1.56925536]
[1746385295233,0.20227821,1830.0,1829.7,1.56925536]
[1746385295430,5.66676053,1830.0,1829.7,5.46535275]
[1746385295639,5.66676053,1830.0,1829.6,7.84015815]
[1746385296221,0.20227821,1830.0,1829.7,5.46536919]
[1746385296724,0.20227821,1830.0,1829.7,9.93636919]
[1746385297539,0.20227821,1830.0,1829.7,4.471]
[1746385297833,0.20227821,1830.0,1829.7,9.93636613]
[1746385298204,5.66678953,1830.0,1829.7,4.471]
[1746385301235,0.20227821,1830.0,1829.7,4.471]
[1746385301407,0.20227821,1830.0,1829.7,5.46536151]
[1746385301607,5.66676173,1830.0,1829.7,5.46536151]
[1746385301826,5.66676173,1830.0,1829.6,12.31119515]
[1746385304620,6.44356173,1830.0,1829.6,12.31119515]
[1746385306261,6.44356173,1830.0,1829.7,4.471]
[1746385306456,11.90828644,1830.0,1829.7,4.471]
[1746385306756,5.46480029,1829.9,1829.7,4.471]
[1746385307145,0.20218232,1829.8,1829.7,4.471]
[1746385307457,5.46480029,1829.9,1829.7,4.471]
[1746385307757,0.20218232,1829.8,1829.7,4.471]
[1746385308161,5.46480029,1829.9,1829.7,4.471]
[1746385308459,0.20218232,1829.8,1829.7,4.471]
[1746385308645,0.7768,1829.8,1829.7,4.471]
[1746385308844,6.24187815,1829.8,1829.7,4.471]
[1746385309040,6.44406047,1829.8,1829.7,4.471]
[1746385309445,5.46554902,1829.7,1829.5,4.471]
[1746385309761,0.19999704,1829.6,1829.5,4.471]
[1746385309959,0.19999704,1829.6,1829.5,12.26562966]
[1746385310119,6.14,1829.8,1829.5,13.52760988]
[1746385310455,6.14,1829.8,1829.5,8.06163558]
[1746385310619,0.19897273,1829.7,1829.5,13.52731337]
[1746385310819,0.19897273,1829.7,1829.6,5.46567555]
[1746385311020,0.19897273,1829.7,1829.5,13.52743203]
[1746385311222,0.19897273,1829.7,1829.6,5.46567555]
[1746385312554,0.19897273,1829.7,1829.5,13.52743203]
[1746385313353,0.19897273,1829.7,1829.6,5.46567555]
[1746385314056,0.19897273,1829.7,1829.5,13.52743203]
[1746385319170,0.19897273,1829.7,1829.5,18.99319743]
[1746385319673,0.19897273,1829.7,1829.5,13.52740098]
[1746385320375,6.14,1829.8,1829.7,6.26427683]
[1746385320543,6.14,1829.8,1829.7,7.83353219]
[1746385320743,6.34003798,1829.8,1829.7,7.83353219]
[1746385321136,0.20003798,1829.8,1829.7,7.83353219]
[1746385321540,6.9121,1830.3,1830.0,5.46447718]
[1746385321736,0.69121,1830.2,1829.9,11.50485377]
[1746385321967,6.9121,1830.3,1829.9,11.50485377]
[1746385322368,12.37569093,1830.3,1829.9,11.50485377]
[1746385322761,12.37569093,1830.3,1829.9,16.96940428]
[1746385323478,12.37569093,1830.3,1829.9,11.50480587]
[1746385323673,12.37569093,1830.3,1829.9,9.93555051]
[1746385324980,6.9121,1830.3,1829.9,10.7344481]
[1746385325369,12.3757123,1830.3,1829.9,10.7344481]
[1746385325679,6.9121,1830.3,1829.9,10.7344481]
[1746385326109,6.9121,1830.3,1830.0,5.46433089]
[1746385326389,12.37572001,1830.3,1829.9,10.73453836]
[1746385330579,0.20360518,1830.2,1829.9,10.73453836]
[1746385331990,0.20360518,1830.2,1830.0,5.46445116]
[1746385332190,0.20360518,1830.2,1830.0,5.46428049]
[1746385332691,0.20360518,1830.2,1829.9,12.30374318]
[1746385332860,0.20360518,1830.2,1830.0,5.46436068]
[1746385333268,0.20360518,1830.2,1829.9,12.30374105]
[1746385335707,0.20360518,1830.2,1829.9,10.73448569]
[1746385336702,5.66751207,1830.2,1829.9,5.2699]
[1746385338011,0.20360518,1830.2,1829.9,10.7346653]
[1746385338699,0.0144049,1830.1,1829.9,10.7346653]
[1746385338908,0.21780933,1830.1,1829.9,10.7346653]
[1746385339603,0.20340443,1830.1,1829.9,10.7346653]
[1746385339924,12.37585122,1830.3,1829.9,10.7346653]
[1746385340075,0.20340443,1830.0,1829.9,10.7346653]
[1746385340395,12.37585122,1830.3,1829.9,10.7346653]
[1746385340599,0.20340443,1830.0,1829.9,10.7346653]
[1746385340759,12.37585122,1830.3,1829.9,12.30392066]
[1746385340962,0.20340443,1830.0,1829.9,12.30392066]
[1746385341170,0.20320829,1830.0,1829.9,14.08079683]
[1746385341375,12.37585122,1830.3,1829.9,14.08079683]
[1746385341609,0.20305779,1830.2,1829.9,12.30392066]
[1746385342019,0.20305779,1830.2,1829.9,10.7346653]
[1746385343621,5.66694633,1830.2,1829.9,5.2699]
[1746385343910,5.46531927,1829.8,1829.5,3.68852132]
[1746385344124,5.46493569,1829.9,1829.7,4.469]
[1746385344277,0.54649357,1829.8,1829.7,4.469]
[1746385344477,0.20305779,1829.8,1829.7,4.469]
[1746385344876,6.27559253,1829.9,1829.7,4.469]
[1746385345110,0.20305779,1829.8,1829.7,4.469]
[1746385345317,6.27559253,1829.9,1829.7,4.469]
[1746385345501,5.66813594,1829.8,1829.7,4.469]
[1746385346299,6.86250879,1829.8,1829.7,4.469]
[1746385348104,6.86250879,1829.8,1829.4,1.86876816]
[1746385348306,12.32787666,1829.8,1829.4,6.33876816]
[1746385348616,5.46540937,1829.7,1829.4,6.33876816]
[1746385349014,0.19774287,1829.6,1829.4,6.33876816]
[1746385349216,5.46540937,1829.7,1829.4,6.33876816]
[1746385349418,0.19774287,1829.6,1829.4,6.33876816]
[1746385349594,5.46540937,1829.7,1829.4,6.33876816]
[1746385349928,0.19774287,1829.6,1829.4,6.33876816]
[1746385350207,5.46540937,1829.7,1829.4,6.33876816]
[1746385350413,0.19774287,1829.6,1829.4,6.33876816]
[1746385350615,5.46540937,1829.7,1829.4,6.33876816]
[1746385350792,0.19774287,1829.6,1829.4,6.33876816]
[1746385350994,5.46540937,1829.7,1829.4,6.33876816]
[1746385351218,0.19725915,1829.6,1829.4,6.33876816]
[1746385351419,5.46540937,1829.7,1829.4,6.33876816]
[1746385351583,0.19695798,1829.6,1829.4,6.33876816]
[1746385351780,5.46540937,1829.7,1829.5,1.56925536]
[1746385351986,0.19695798,1829.6,1829.5,1.56925536]
[1746385352186,6.14,1829.8,1829.5,7.85342966]
[1746385352386,0.19695798,1829.7,1829.6,1.56925536]
[1746385352895,0.19695798,1829.7,1829.5,2.38745536]
[1746385353093,5.66235036,1829.7,1829.5,2.95716693]
[1746385353501,5.66249508,1829.7,1829.5,1.56925536]
[1746385353695,5.66252921,1829.7,1829.4,6.33876816]
[1746385353887,6.49502921,1829.7,1829.4,0.2995128]
[1746385354087,5.4659743,1829.5,1829.4,4.7695128]
[1746385354295,6.2984743,1829.5,1829.4,4.7695128]
[1746385354500,6.49550757,1829.5,1829.4,4.7695128]
[1746385354728,6.49550757,1829.5,1829.4,0.2995128]
[1746385358206,12.63550757,1829.5,1829.4,0.2995128]
[1746385361248,14.4456553,1829.5,1829.4,0.2995128]
[1746385375773,14.86152998,1829.5,1829.4,0.2995128]
[1746385376253,14.4456553,1829.5,1829.4,0.2995128]
[1746385379357,11.80300757,1829.5,1829.4,0.2995128]
[1746385380855,12.59060757,1829.5,1829.4,0.2995128]
[1746385381028,11.80300757,1829.5,1829.4,0.2995128]
[1746385382354,6.33703327,1829.5,1829.4,0.2995128]
[1746385382832,6.33703327,1829.5,1829.4,1.1074128]
[1746385383029,0.19703327,1829.5,1829.4,1.1074128]
[1746385383338,5.46538363,1829.7,1829.4,1.4382165]
[1746385383547,0.19371995,1829.5,1829.4,1.1074128]
[1746385383776,5.46538363,1829.7,1829.4,1.1074128]
[1746385383922,0.19371995,1829.5,1829.4,1.1074128]
[1746385384271,0.19469895,1829.5,1829.4,1.1074128]
[1746385384460,5.46538363,1829.7,1829.4,1.1074128]
[1746385384663,0.19469895,1829.6,1829.4,1.1074128]
[1746385384861,5.46574167,1829.6,1829.4,1.1074128]
[1746385385026,0.19469895,1829.5,1829.4,0.2995128]
[1746385387565,6.14,1829.6,1829.4,5.76578396]
[1746385387767,0.19469895,1829.5,1829.4,5.76578396]
[1746385388665,0.19469895,1829.5,1829.4,0.2995128]
[1746385388845,7.07334314,1829.5,1829.4,0.2995128]
[1746385389536,1.60736884,1829.5,1829.4,0.2995128]
[1746385390064,7.07334314,1829.5,1829.4,0.2995128]
[1746385390269,10.07334314,1829.5,1829.4,0.2995128]
[1746385392572,4.60736884,1829.5,1829.4,0.2995128]
[1746385393277,10.07334314,1829.5,1829.4,0.2995128]
[1746385393590,16.21334314,1829.5,1829.4,0.2995128]
[1746385393989,9.96816884,1829.5,1829.4,0.2995128]
[1746385394144,9.33469895,1829.5,1829.4,0.2995128]
[1746385397507,15.62137325,1829.5,1829.4,0.2995128]
[1746385398783,16.03738251,1829.5,1829.4,0.2995128]
[1746385400569,16.58738251,1829.5,1829.4,0.2995128]
[1746385401284,49.57001851,1829.5,1829.4,0.2995128]
[1746385401502,43.09604221,1829.5,1829.4,0.2995128]
[1746385401814,38.75465021,1829.5,1829.4,0.2995128]
[1746385403100,36.21765021,1829.5,1829.4,0.2995128]
[1746385403303,24.36020921,1829.5,1829.4,0.2995128]
[1746385403503,24.75320921,1829.5,1829.4,0.2995128]
[1746385404108,24.37566421,1829.5,1829.4,0.2995128]
[1746385404315,21.58969921,1829.5,1829.4,0.2995128]
[1746385404519,13.03738251,1829.5,1829.4,0.2995128]
[1746385404717,6.33469895,1829.5,1829.4,0.2995128]
[1746385405610,10.00471454,1829.5,1829.4,0.2995128]
[1746385409825,6.33469895,1829.5,1829.4,0.2995128]
[1746385410596,11.80067325,1829.5,1829.4,0.2995128]
[1746385410990,6.33469895,1829.5,1829.4,0.2995128]
[1746385416816,6.33469895,1829.5,1829.4,0.95141951]
[1746385417031,6.33469895,1829.5,1829.4,7.2213926]
[1746385417904,6.33469895,1829.5,1829.4,1.75511951]
[1746385418313,6.33469895,1829.5,1829.4,1.1032128]
[1746385418514,6.33469895,1829.5,1829.4,0.2995128]
[1746385419154,11.80067325,1829.5,1829.4,0.2995128]
[1746385419349,6.33469895,1829.5,1829.4,0.2995128]
[1746385419806,11.80067325,1829.5,1829.4,0.2995128]
[1746385421457,6.33469895,1829.5,1829.4,0.2995128]
[1746385440687,11.80067325,1829.5,1829.4,0.2995128]
[1746385441091,13.52732628,1829.5,1829.4,0.2995128]
[1746385441621,16.52732628,1829.5,1829.4,0.2995128]
[1746385455767,17.31772628,1829.5,1829.4,0.2995128]
[1746385455940,19.51835044,1829.5,1829.4,0.2995128]
[1746385458265,19.9306826,1829.5,1829.4,0.2995128]
[1746385459566,16.93965844,1829.5,1829.4,0.2995128]
[1746385473238,16.52732628,1829.5,1829.4,0.2995128]
[1746385473587,11.80067325,1829.5,1829.4,1.1016128]
[1746385475664,11.80067325,1829.5,1829.4,0.2995128]
[1746385475865,6.33469895,1829.5,1829.4,1.0667128]
[1746385476194,6.33469895,1829.5,1829.4,6.53298589]
[1746385476369,0.19469895,1829.5,1829.4,9.93356119]
[1746385476572,9.81001559,1829.8,1829.5,5.46578286]
[1746385476904,0.15398069,1829.7,1829.6,0.7672]
[1746385477113,0.15398069,1829.7,1829.6,6.23287555]
[1746385481818,0.15398069,1829.7,1829.6,0.7672]
[1746385481978,0.15398069,1829.7,1829.6,1.39049569]
[1746385482308,0.15398069,1829.7,1829.6,6.85617124]
[1746385482477,0.15398069,1829.7,1829.6,1.39049569]
[1746385483317,0.15398069,1829.7,1829.6,6.85617124]
[1746385483815,0.15398069,1829.7,1829.6,1.39049569]
[1746385485019,0.15398069,1829.7,1829.6,6.85617124]
[1746385486320,0.15398069,1829.7,1829.6,9.11144882]
[1746385487580,11.6039879,1830.2,1829.9,0.7547]
[1746385488204,6.14,1830.2,1829.9,0.7547]
[1746385488408,11.603923,1830.2,1829.9,0.7547]
[1746385489288,6.14,1830.2,1829.9,7.29032933]
[1746385489474,6.14,1830.2,1829.9,1.82555626]
[1746385490101,6.14,1830.2,1829.9,7.29022785]
[1746385490502,5.46377518,1830.3,1829.9,7.29022785]
[1746385490708,5.46377518,1830.3,1829.9,7.29010874]
[1746385490893,5.46377518,1830.3,1830.0,0.72901087]
[1746385492121,6.14,1830.4,1830.2,5.46371613]
[1746385492285,6.14,1830.4,1830.3,0.7684]
[1746385492616,6.14,1830.5,1830.3,0.7684]
[1746385492917,11.60309403,1830.5,1830.3,0.7684]
[1746385495620,0.13933054,1830.4,1830.3,0.7684]
[1746385496993,0.13933054,1830.4,1830.3,1.29404]
[1746385497930,11.60287049,1830.6,1830.3,1.29404]
[1746385498128,0.13933054,1830.4,1830.3,1.29404]
[1746385498328,11.60287049,1830.6,1830.3,1.29404]
[1746385498527,0.13933054,1830.4,1830.3,1.29404]
[1746385498823,5.46299339,1830.5,1830.3,1.29404]
[1746385499130,0.13933054,1830.4,1830.3,1.29404]
[1746385504026,0.13933054,1830.4,1830.3,0.7539951]
[1746385507028,11.60287244,1830.6,1830.3,0.7539951]
[1746385507216,0.14310923,1830.5,1830.3,0.7539951]
[1746385507419,5.60611684,1830.5,1830.3,0.7539951]
[1746385507922,0.14310923,1830.5,1830.3,0.7539951]
[1746385510115,5.60609969,1830.5,1830.3,0.7539951]
[1746385511535,0.14310923,1830.5,1830.3,0.7539951]
[1746385513537,0.14310923,1830.5,1830.4,5.46328671]
[1746385513711,0.14310923,1830.5,1830.4,6.22998671]
[1746385514226,0.14378927,1830.5,1830.4,6.22998671]
[1746385514422,7.6619776,1831.1,1830.6,5.46249119]
[1746385514423,11.60165264,1831.0,1830.6,5.46249119]
[1746385514645,0.14439369,1830.9,1830.7,0.7667]
[1746385515153,5.60618944,1830.9,1830.7,0.7667]
[1746385516557,7.32695849,1830.9,1830.6,4.486]
[1746385517945,1.86516274,1830.9,1830.6,9.94868608]
[1746385518246,1.86516274,1830.9,1830.6,9.94851722]
[1746385518247,0.14439369,1830.9,1830.6,9.94851722]
[1746385518742,0.14439369,1830.9,1830.6,9.94849569]
[1746385520539,0.14439369,1830.9,1830.6,4.486]
[1746385521308,5.60622232,1830.9,1830.6,4.486]
[1746385522240,0.14439369,1830.9,1830.6,4.486]
[1746385522706,5.6062342,1830.9,1830.6,4.486]
[1746385523340,0.14439369,1830.9,1830.6,4.486]
[1746385524348,0.14439369,1830.9,1830.6,9.94867571]
[1746385524541,0.14439369,1830.9,1830.6,4.486]
[1746385524710,0.14439369,1830.9,1830.6,9.94853005]
[1746385525009,0.14439369,1830.9,1830.6,11.56633806]
[1746385525347,5.60623023,1830.9,1830.6,6.10380801]